[Event "40th Cappelle Open 2024"]
[Site "Cappelle-la-Grande"]
[Date "2024.03.04"]
[Round "4.3"]
[White "Decuigniere, Tom"]
[Black "Vlachos, Anatole"]
[Result "0-1"]
[ECO "D35"]
[WhiteElo "2402"]
[BlackElo "2479"]
[Annotator "ChessBase"]
[PlyCount "70"]
[EventDate "2024.03.02"]
[EventType "swiss"]
[EventCountry "FRA"]
[SourceTitle "playchess.com"]
[Source "ChessBase"]
[SourceQuality "1"]
[TimeControl "40/5400+30:1800+30"]

1. d4 {[%emt 0:04:06]} d5 {[%emt 0:00:05]} 2. c4 {[%emt 0:00:09]} e6 {[%emt 0:00:35]} 3. Nc3 {[%emt 0:00:14]} Nf6 {[%emt 0:00:05]} 4. cxd5 {[%emt 0:00:28]} exd5 {[%emt 0:00:07]} 5. Bg5 {[%emt 0:00:05]} c6 {[%emt 0:00:05]} 6. e3 {[%emt 0:00:12]} Be7 {[%emt 0:00:06]} 7. Bd3 {[%emt 0:00:21]} Nbd7 {[%emt 0:00:05]} 8. Nf3 {[%emt 0:01:37]} h6 {[%emt 0:00:43]} 9. Bf4 {[%emt 0:03:01]} Nh5 {[%emt 0:00:04]} 10. Be5 {[%emt 0:00:57]} Nxe5 {[%emt 0:00:04]} 11. dxe5 {[%emt 0:01:45]} g6 {[%emt 0:00:04]} 12. O-O {[%emt 0:03:11]} O-O {[%emt 0:03:58]} 13. Qc2 {[%emt 0:02:32]} Ng7 {[%emt 0:01:34]} 14. Rad1 {[%emt 0:03:54]} Bg4 {[%emt 0:03:19]} 15. h3 {[%emt 0:02:18]} Bxf3 {[%emt 0:02:32]} 16. gxf3 {[%emt 0:00:06]} f6 {[%emt 0:11:10]} 17. exf6 {[%emt 0:11:11]} Bxf6 {[%emt 0:03:43]} 18. f4 {[%emt 0:03:43]} g5 {[%emt 0:08:31]} 19. Bh7+ {[%emt 0:12:18]} Kh8 {[%emt 0:01:45]} 20. Qg6 {[%emt 0:00:44]} gxf4 {[%emt 0:03:17]} 21. Ne4 {[%emt 0:08:06]} Qe8 {[%emt 0:21:25]} 22. Qxh6 {[%emt 0:00:16]} Qh5 {[%emt 0:00:07]} 23. Qxh5 {[%emt 0:00:08]} Nxh5 {[%emt 0:00:01]} 24. Nxf6 {[%emt 0:00:08]} Rxf6 {[%emt 0:00:44]} 25. Bd3 {[%emt 0:04:46]} Re8 {[%emt 0:02:47]} 26. Be2 {[%emt 0:05:14]} f3 {[%emt 0:04:45]} 27. Bd3 {[%emt 0:00:11]} Rg8+ {[%emt 0:00:24]} 28. Kh1 {[%emt 0:00:27]} Rg2 {[%emt 0:00:47]} 29. Rg1 {[%emt 0:01:51]} Rxf2 {[%emt 0:00:10]} 30. Rg5 {[%emt 0:00:29]} Rh6 {[%emt 0:02:18]} 31. Rf1 {[%emt 0:00:04]} Rxf1+ {[%emt 0:02:20]} 32. Bxf1 {[%emt 0:00:04]} Nf6 {[%emt 0:01:17]} 33. Rf5 {[%emt 0:02:41]} Ne4 {[%emt 0:00:18]} 34. Kh2 {[%emt 0:03:03]} Nd2 {[%emt 0:01:41]} 35. Bd3 {[%emt 0:00:06]} Re6 {[%emt 0:00:31]} 0-1

[Event "40th Cappelle Open 2024"]
[Site "Cappelle-la-Grande"]
[Date "2024.03.04"]
[Round "4.4"]
[White "Nanjo, Ryosuke"]
[Black "Barp, Alberto"]
[Result "0-1"]
[ECO "C78"]
[WhiteElo "2346"]
[BlackElo "2449"]
[Annotator "TA"]
[PlyCount "107"]
[EventDate "2024.03.02"]
[EventType "swiss"]
[EventCountry "FRA"]
[SourceTitle "playchess.com"]
[Source "ChessBase"]
[SourceQuality "1"]
[TimeControl "40/5400+30:1800+30"]

{[%evp 17,107,28,24,0,4,0,12,14,18,12,17,15,24,10,20,12,23,19,29,25,22,27,26,22,5,18,9,24,28,22,25,18,17,-8,-8,-24,-17,-22,-39,-43,-19,-23,-24,-20,-24,-42,-34,-38,-8,-8,-8,-8,-8,-1291,-1291,-1219,-1210,-1138,-1138,-635,0,0,0,0,0,0,0,0,-7,-8,-8,-852,-845,-5214,-219,-29972,-29973,-29976,-29976,-29976,-29979,-29979,-29980,-29982,-29983,-29983,-29984,-29984,-29985,-29985,-29986,-29984]} 1. e4 {[%emt 0:00:03]} e5 {[%emt 0:02:28]} 2. Nf3 {[%emt 0:00:03]} Nc6 {[%emt 0:00:12]} 3. Bb5 {[%emt 0:00:05]} a6 {[%emt 0:00:25]} 4. Ba4 {[%emt 0:00:07]} Nf6 {[%emt 0:01:20]} 5. O-O {[%emt 0:00:06]} b5 {[%emt 0:00:32]} 6. Bb3 {[%emt 0:00:02]} Bc5 {[%emt 0:00:09][%cal Bf8c5,Bc5b6,Bb6a7,Ba7e3][%mdl 32]} 7. a4 {[%emt 0:00:22]} Rb8 {[%emt 0:00:19]} 8. c3 {[%emt 0:00:12]} d6 {[%emt 0:00:06]} 9. d4 {[%emt 0:00:10][%cal Bd2d4,Bd4d5,Bd5c6][%mdl 32]} Bb6 {[%emt 0:00:04]} 10. a5 {[%emt 0:00:07]} Ba7 {[%emt 0:00:08]} 11. h3 {[%emt 0:00:07]} Bb7 {[%emt 0:07:50]} 12. Be3 {[%emt 0:00:12] Threatening d5. The position is equal.} Nxe4 {[%emt 0:02:01]} 13. d5 {[%emt 0:00:16]} Bxe3 {[%emt 0:00:49]} 14. dxc6 {[%emt 0:00:10] Strongly threatening Qd5.} Nxf2 {[%emt 0:00:21]} 15. Qe2 {[%emt 0:00:12]} Nxh3+ {[%emt 0:01:58]} 16. Kh1 {[%emt 0:00:15]} Nf2+ {[%emt 0:00:23]} 17. Rxf2 {[%emt 0:00:08]} Bxf2 {[%emt 0:00:08]} 18. Qxf2 {[%emt 0:01:59]} Bxc6 {[%emt 0:04:49] [#]} 19. Nxe5 $1 {[%emt 0:04:16][%csl Gb3,Ge5][%cal Rf2f7]} Bxg2+ {[%emt 0:03:37]} 20. Kg1 $1 {[%emt 0:04:07][%csl Gb3,Ge5][%cal Rf2f7]} O-O {[%emt 0:01:38]} 21. Nxf7 {[%emt 0:03:44]} Qe7 {[%emt 0:02:22]} 22. Kxg2 {[%emt 0:01:41]} ({Don't go for} 22. Ng5+ $2 d5 23. Qxg2 Qe1+ 24. Kh2 Rf2 $19) 22... Rxf7 {[%emt 0:00:20]} 23. Qxf7+ {[%emt 0:04:15]} Qxf7 {[%emt 0:00:06]} 24. Bxf7+ {[%emt 0:00:04]} Kxf7 $11 {[%emt 0:00:03][%mdl 4096] Endgame. KRN-KR} 25. Na3 {[%emt 0:00:22]} b4 {[%emt 0:11:30]} 26. Nc2 {[%emt 0:23:14]} bxc3 {[%emt 0:00:57]} 27. bxc3 {[%emt 0:01:58]} Rb2 {[%emt 0:06:35]} 28. Rf1+ {[%emt 0:00:10]} Ke8 {[%emt 0:01:14]} 29. Rf2 {[%emt 0:02:16]} Ra2 {[%emt 0:01:21]} 30. Nd4 {[%emt 0:05:29]} Rxa5 {[%emt 0:04:01]} 31. Ne6 {[%emt 0:01:05]} Kd7 {[%emt 0:05:13]} 32. Nf8+ {[%emt 0:01:29]} Ke7 {[%emt 0:06:23] aiming for ...Rh5.} 33. Nxh7 {[%emt 0:00:06]} Rh5 {[%emt 0:01:59]} 34. Re2+ {[%emt 0:00:56]} Re5 {[%emt 0:02:01]} (34... Kf7 $5 35. Rf2+ $8 Ke7 36. Re2+ Re5 $11) 35. Kf3 {[%emt 0:02:23][%mdl 8192]} (35. Ra2 $11) 35... Rxe2 $19 {[%emt 0:11:33]} 36. Kxe2 {[%emt 0:00:02] KN-KP} Ke6 {[%emt 0:17:46]} 37. Ng5+ {[%emt 0:01:12]} Kf5 {[%emt 0:00:53]} 38. Nf3 {[%emt 0:00:47]} c5 $2 {[%emt 0:00:17]} (38... g5 $19 39. Nd4+ Kg4) 39. Nd2 $11 {[%emt 0:01:29]} Kf4 {[%emt 0:02:33] Hoping for ...a5.} 40. Nc4 {[%emt 0:06:30]} d5 {[%emt 0:01:23]} 41. Nb6 {[%emt 0:35:18]} Ke5 {[%emt 0:30:55]} 42. Kd3 {[%emt 0:00:14]} c4+ {[%emt 0:00:00]} 43. Ke3 {[%emt 0:00:00]} a5 {[%emt 0:00:00] And now ...g5 would win.} 44. Na4 $2 {[%emt 0:15:55][%mdl 8192]} (44. Nc8 $11) 44... g5 $19 {[%emt 0:00:00] ...Kd6 would now be deadly.} 45. Nb2 {[%emt 0:07:05]} g4 $2 {[%emt 0:00:00]} (45... Kd6 46. Nd1 a4) 46. Na4 $2 {[%emt 0:00:25] [#]} (46. Kf2 $19 Kf4 47. Na4) 46... Kd6 $1 {[%emt 0:00:00] Black mates.} 47. Nb2 {[%emt 0:00:14]} Kc5 {[%emt 0:00:00]} 48. Nd1 {[%emt 0:01:00]} g3 {[%emt 0:00:00]} 49. Kf3 {[%emt 0:01:29]} a4 {[%emt 0:00:00]} 50. Kxg3 {[%emt 0:04:59]} d4 {[%emt 0:00:00]} 51. cxd4+ {[%emt 0:01:44]} Kxd4 {[%emt 0:00:00]} 52. Kf3 {[%emt 0:03:55]} a3 {[%emt 0:00:40]} 53. Ke2 {[%emt 0:00:20]} a2 {[%emt 0:00:52]} 54. Ne3 {[%emt 0:00:11] Weighted Error Value: White=0.53/Black=0.20 (precise) .  Loses game:     	White=2     	---        Inaccurate:     	White=1     	Black=1      OK:         	White=13    	Black=16     Best:        	White=6     	Black=8      Strong:       	White=1     	---        Brilliant:      	White=1     	---} 0-1

[Event "40th Cappelle Open 2024"]
[Site "Cappelle-la-Grande"]
[Date "2024.03.04"]
[Round "4.5"]
[White "Gopal G.N."]
[Black "Riff, Jean-Noel"]
[Result "1-0"]
[ECO "C70"]
[WhiteElo "2575"]
[BlackElo "2401"]
[Annotator "TA"]
[PlyCount "75"]
[EventDate "2024.03.02"]
[EventType "swiss"]
[EventCountry "FRA"]
[SourceTitle "playchess.com"]
[Source "ChessBase"]
[SourceQuality "1"]
[TimeControl "40/5400+30:1800+30"]

{[%evp 9,75,56,46,45,57,42,45,46,44,37,50,27,52,37,33,22,22,10,12,7,67,57,64,48,49,62,69,55,69,71,79,68,71,68,96,100,127,70,100,96,145,143,182,181,181,170,167,160,178,182,193,189,225,224,280,252,268,233,335,332,350,328,326,335,340,334,345,334]} 1. e4 {[%emt 0:00:03]} e5 {[%emt 0:00:07]} 2. Nf3 {[%emt 0:00:04]} Nc6 {[%emt 0:00:04]} 3. Bb5 {[%emt 0:00:07]} a6 {[%emt 0:00:07]} 4. Ba4 {[%emt 0:00:05]} Nge7 {[%emt 0:00:06]} 5. c3 {[%emt 0:05:37]} f6 {[%emt 0:00:47]} 6. d4 {[%emt 0:13:22]} d5 {[%emt 0:02:25]} 7. dxe5 {[%emt 0:09:45]} (7. exd5 {simplifies} Qxd5 8. dxe5 Qxd1+ 9. Bxd1 fxe5 10. O-O) 7... dxe4 {[%emt 0:01:00]} 8. Nd4 {[%emt 0:03:15] White is slightly better.} b5 $1 {[%emt 0:00:36] [#] White must now prevent ...Nxd4.} 9. exf6 {[%emt 0:11:04]} Nxd4 {[%emt 0:01:24]} 10. fxe7 {[%emt 0:01:53]} (10. Bb3 $5 gxf6 11. cxd4 $14 (11. Qxd4 Qxd4 12. cxd4 Bb7 $11)) 10... Bxe7 {[%emt 0:02:26]} 11. cxd4 {[%emt 0:00:55]} bxa4 {[%emt 0:00:16]} 12. Qxa4+ {[%emt 0:02:25]} Bd7 {[%emt 0:01:05]} 13. Qc4 {[%emt 0:03:10]} (13. Qb3 {simplifies} Rb8 14. Qe3 O-O 15. Nc3) 13... Bb5 {[%emt 0:11:20] This pair of bishops is nice.} 14. Qe6 {[%emt 0:00:32] With the idea Bg5.} Qxd4 {[%emt 0:27:22]} (14... Qd6 $11 15. Qxd6 cxd6) 15. Bg5 $14 {[%emt 0:03:25]} Qc5 {[%emt 0:02:18]} (15... Qxb2 16. Qxe7#) 16. Qxe7+ {[%emt 0:01:15]} Qxe7 {[%emt 0:00:32]} 17. Bxe7 {[%emt 0:00:03]} Kxe7 {[%emt 0:00:08]} 18. Nc3 {[%emt 0:00:05]} Rhd8 {[%emt 0:01:53]} 19. Nxe4 {[%emt 0:17:55]} Bc6 {[%emt 0:05:58]} 20. Nd2 {[%emt 0:02:36]} Rd6 {[%emt 0:19:55][%cal Oe7f8]} 21. f3 {[%emt 0:04:18]} Kf7 {[%emt 0:02:52] Black is on the road to losing.} 22. O-O-O {[%emt 0:02:12]} Rg6 {[%emt 0:01:42]} 23. g3 {[%emt 0:07:31]} (23. Nc4 $16 {And now Ne5+ would win.} Re8 24. Rhe1) 23... h5 {[%emt 0:01:41]} 24. Rhe1 {[%emt 0:06:38]} h4 {[%emt 0:00:21]} 25. Nc4 $16 {[%emt 0:00:25] [#] aiming for Ne5+.} (25. gxh4 Rh8 $16) 25... Kg8 {[%emt 0:03:08]} 26. Ne5 {[%emt 0:00:22]} (26. gxh4 Bxf3 27. Ne5 Bxd1 28. Nxg6 Bg4 29. Ne7+ Kh7 $11) 26... Rh6 {[%emt 0:00:26]} 27. f4 {[%emt 0:00:28]} hxg3 {[%emt 0:00:13]} 28. hxg3 {[%emt 0:00:01]} Rb8 {[%emt 0:00:14]} 29. Re2 {[%emt 0:03:31]} Bb5 {[%emt 0:01:20]} 30. Rc2 {[%emt 0:01:24]} Rc8 {[%emt 0:02:53]} 31. b3 {[%emt 0:00:24][%cal Bb2b3,Bb3c4][%mdl 32]} c5 {[%emt 0:00:15]} 32. Rd5 {[%emt 0:00:59]} Rh3 {[%emt 0:00:01]} 33. Rc3 {[%emt 0:00:14]} ({Much less strong is} 33. Rcxc5 $6 Rxc5+ 34. Rxc5 Rxg3 $16) 33... c4 {[%emt 0:01:01]} (33... Rh1+ $142 34. Kb2 Rg1) 34. bxc4 $18 {[%emt 0:00:22] White has a decisive advantage.} Ba4 {[%emt 0:00:09]} 35. Kb2 {[%emt 0:00:31]} Rh2+ {[%emt 0:00:30]} 36. Ka3 {[%emt 0:00:01]} Bc2 {[%emt 0:00:14]} 37. Nf3 {[%emt 0:00:29]} Rf2 {[%emt 0:00:03]} 38. Rd2 {[%emt 0:00:07] Weighted Error Value: White=0.07 (flawless) /Black=0.19 (very precise) .  Mistake:       	White=1     	Black=3      Inaccurate:     	---       	Black=2      OK:         	White=11    	Black=3      Best:        	White=7     	Black=6      Strong:       	---       	Black=1} 1-0

[Event "40th Cappelle Open 2024"]
[Site "Cappelle-la-Grande"]
[Date "2024.03.04"]
[Round "4.6"]
[White "Can, Emre"]
[Black "Zylka, Stanislaw"]
[Result "1/2-1/2"]
[ECO "B22"]
[WhiteElo "2551"]
[BlackElo "2401"]
[Annotator "TA"]
[PlyCount "57"]
[EventDate "2024.03.02"]
[EventType "swiss"]
[EventCountry "FRA"]
[SourceTitle "playchess.com"]
[Source "ChessBase"]
[SourceQuality "1"]
[TimeControl "40/5400+30:1800+30"]

{[%evp 12,57,19,27,17,9,23,14,26,10,18,0,11,0,0,0,38,25,33,17,26,12,26,0,0,-17,-10,-21,-14,-14,-12,-33,0,7,8,8,55,18,35,16,16,20,18,0,0,0,11,0]} 1. e4 {[%emt 0:00:07]} c5 {[%emt 0:00:54]} 2. Nf3 {[%emt 0:00:25]} e6 {[%emt 0:00:22]} 3. c3 {[%emt 0:00:16]} d5 {[%emt 0:00:15]} 4. exd5 {[%emt 0:00:22]} Qxd5 {[%emt 0:00:43]} 5. d4 {[%emt 0:00:23]} Nf6 {[%emt 0:00:13]} 6. Na3 {[%emt 0:00:08]} Nc6 {[%emt 0:03:00]} 7. Be3 {[%emt 0:01:14]} cxd4 {[%emt 0:01:23] [#]} 8. Nb5 $1 {[%emt 0:00:16]} Qd7 {[%emt 0:04:02] Wards off Nc7+} 9. Nbxd4 {[%emt 0:01:29]} a6 {[%emt 0:00:45]} 10. Be2 {[%emt 0:29:01]} Bd6 {[%emt 0:03:51]} 11. O-O {[%emt 0:01:38]} O-O {[%emt 0:00:37]} 12. Nxc6 {[%emt 0:07:44]} Qxc6 {[%emt 0:00:57]} 13. Bd4 {[%emt 0:00:11]} Qc7 {[%emt 0:01:15] [#] Strongly threatening ...e5.} 14. Bxf6 {[%emt 0:01:02]} gxf6 {[%emt 0:00:08]} 15. Qd4 {[%emt 0:01:56]} Be7 {[%emt 0:09:12]} 16. Rad1 {[%emt 0:00:32]} Kh8 {[%emt 0:02:30]} 17. Nd2 {[%emt 0:03:01]} e5 {[%emt 0:04:53]} 18. Qc4 {[%emt 0:03:38]} Qxc4 {[%emt 0:01:46]} 19. Nxc4 {[%emt 0:02:28]} Be6 {[%emt 0:00:19]} 20. Nb6 {[%emt 0:16:36]} Rad8 {[%emt 0:03:56]} 21. Bf3 {[%emt 0:01:15]} Rxd1 {[%emt 0:00:54]} 22. Rxd1 {[%emt 0:00:05]} Rd8 {[%emt 0:00:06]} 23. Nd5 {[%emt 0:01:10]} Bxd5 {[%emt 0:00:43]} (23... Bf8 $11) 24. Bxd5 $11 {[%emt 0:01:32] KRB-KRB} Kg7 {[%emt 0:02:43]} 25. Kf1 {[%emt 0:01:08]} f5 {[%emt 0:04:53] The position is equal.} 26. Ke2 {[%emt 0:00:06]} b6 {[%emt 0:01:19]} 27. c4 {[%emt 0:02:04]} Bc5 {[%emt 0:02:08]} 28. Rd3 {[%emt 0:02:05]} Rd6 {[%emt 0:08:02]} 29. Rg3+ {[%emt 0:01:45] Weighted Error Value: White=0.10 (very precise) /Black=0.10 (very precise) .  Mistake:       	---       	Black=1      Inaccurate:     	White=2     	Black=2      OK:         	White=6     	Black=9      Best:        	---       	Black=1      Strong:       	White=1     	---} 1/2-1/2

[Event "40th Cappelle Open 2024"]
[Site "Cappelle-la-Grande"]
[Date "2024.03.04"]
[Round "4.7"]
[White "Valsecchi, Alessio"]
[Black "Jablonicky, Martin"]
[Result "0-1"]
[ECO "A15"]
[WhiteElo "2490"]
[BlackElo "2393"]
[Annotator "RC"]
[PlyCount "80"]
[EventDate "2024.03.02"]
[EventType "swiss"]
[EventCountry "FRA"]
[SourceTitle "playchess.com"]
[Source "ChessBase"]
[SourceQuality "1"]
[TimeControl "40/5400+30:1800+30"]

1. c4 {[%emt 0:01:19]} e6 {[%emt 0:06:18]} 2. Nf3 {[%emt 0:00:40]} Nf6 {[%emt 0:00:17]} 3. e3 {[%emt 0:05:07]} b6 {[%emt 0:02:25]} 4. b3 {[%emt 0:01:04]} Bb7 {[%emt 0:00:25]} 5. Bb2 {[%emt 0:00:07]} g6 {[%emt 0:03:36]} 6. Be2 {[%emt 0:16:44]} Bg7 {[%emt 0:00:06]} 7. O-O {[%emt 0:01:17]} O-O {[%emt 0:02:00]} 8. d3 {[%emt 0:00:14]} d6 {[%emt 0:01:08]} 9. Qc2 {[%emt 0:00:46]} Nbd7 {[%emt 0:00:31]} 10. Nc3 {[%emt 0:01:12]} Qe7 {[%emt 0:01:32]} 11. Rad1 {[%emt 0:00:55]} Ne8 {[%emt 0:04:43]} 12. d4 {[%emt 0:06:51]} f5 {[%emt 0:00:28]} 13. Ne1 {[%emt 0:02:40]} Nef6 {[%emt 0:04:52]} 14. b4 {[%emt 0:02:56]} a5 {[%emt 0:01:15]} 15. b5 {[%emt 0:02:19]} e5 {[%emt 0:03:10]} 16. Ba3 {[%emt 0:11:18]} Rae8 {[%emt 0:07:40]} 17. c5 {[%emt 0:13:00]} exd4 {[%emt 0:03:34]} 18. cxd6 {[%emt 0:01:38]} cxd6 {[%emt 0:00:15]} 19. Rxd4 {[%emt 0:01:25]} Nc5 {[%emt 0:02:58]} 20. Qd1 {[%emt 0:01:32]} Ng4 {[%emt 0:03:54]} 21. Bxg4 {[%emt 0:05:05]} fxg4 {[%emt 0:00:05]} 22. Rxd6 {[%emt 0:05:35]} Rf7 {[%emt 0:42:21]} 23. Bxc5 {[%emt 0:06:52]} bxc5 {[%emt 0:00:01]} 24. Ne2 {[%emt 0:00:24]} Bd4 {[%emt 0:06:46]} 25. Rxd4 {[%emt 0:01:28]} cxd4 {[%emt 0:00:01]} 26. Nxd4 {[%emt 0:00:20]} Ref8 {[%emt 0:00:41]} 27. Qb3 {[%emt 0:01:33]} Qe4 {[%emt 0:00:46]} 28. a4 {[%emt 0:04:06]} Bd5 {[%emt 0:00:58]} 29. Qc3 {[%emt 0:00:14]} h5 {[%emt 0:00:28]} 30. f3 {[%emt 0:04:24]} gxf3 {[%emt 0:00:37]} 31. gxf3 {[%emt 0:00:15]} Qe5 {[%emt 0:00:43]} 32. Qd3 {[%emt 0:00:31]} Rc8 {[%emt 0:00:46]} 33. Rf2 {[%emt 0:01:17]} Rc1 {[%emt 0:00:32]} 34. Qd2 {[%emt 0:00:14]} Ra1 {[%emt 0:00:26]} 35. Rg2 {[%emt 0:00:57]} Bxf3 {[%emt 0:01:01]} 36. Ndxf3 {[%emt 0:01:16]} Rxf3 {[%emt 0:00:06]} 37. Qd8+ {[%emt 0:00:51]} Kg7 {[%emt 0:00:15]} 38. Qd7+ {[%emt 0:00:27]} Kh6 {[%emt 0:00:30]} 39. Qd2 {[%emt 0:00:35]} Qxe3+ {[%emt 0:00:13]} 40. Qxe3+ {[%emt 0:00:24]} Rxe3 {[%emt 0:00:05]} 0-1

[Event "40th Cappelle Open 2024"]
[Site "Cappelle-la-Grande"]
[Date "2024.03.04"]
[Round "4.8"]
[White "Lamard, Guillaume"]
[Black "Samani, Yamac"]
[Result "1-0"]
[ECO "C02"]
[WhiteElo "2483"]
[BlackElo "2378"]
[Annotator "TA"]
[PlyCount "83"]
[EventDate "2024.03.02"]
[EventType "swiss"]
[EventCountry "FRA"]
[SourceTitle "playchess.com"]
[Source "ChessBase"]
[SourceQuality "1"]
[TimeControl "40/5400+30:1800+30"]

{[%evp 17,83,0,14,4,14,13,17,0,9,0,8,0,16,9,27,29,48,22,18,18,18,16,32,18,31,22,10,0,34,0,0,-150,136,141,138,137,138,139,138,139,151,156,169,163,180,172,200,199,204,209,222,237,229,239,262,206,224,212,304,311,350,347,338,294,506,525,520,510]} 1. e4 {[%emt 0:02:21]} e6 {[%emt 0:01:19]} 2. d4 {[%emt 0:00:08]} d5 {[%emt 0:00:06]} 3. e5 {[%emt 0:00:04]} c5 {[%emt 0:00:18]} 4. c3 {[%emt 0:00:03]} Nc6 {[%emt 0:00:16]} 5. Nf3 {[%emt 0:00:04]} Bd7 {[%emt 0:00:18]} 6. Be2 {[%emt 0:00:05]} Nge7 {[%emt 0:00:36]} 7. Na3 {[%emt 0:00:35]} Nf5 {[%emt 0:01:20]} 8. Nc2 {[%emt 0:02:08]} cxd4 {[%emt 0:01:32]} 9. cxd4 {[%emt 0:00:14]} Be7 {[%emt 0:02:06]} 10. O-O {[%emt 0:00:33]} O-O {[%emt 0:00:43]} 11. Bd3 {[%emt 0:00:12]} f6 {[%emt 0:07:05]} 12. Bf4 {[%emt 0:01:03] The position is equal.} fxe5 {[%emt 0:06:56]} 13. Nxe5 {[%emt 0:01:07]} Rc8 {[%emt 0:07:17]} 14. Rc1 {[%emt 0:01:49]} Be8 {[%emt 0:04:52]} 15. g3 {[%emt 0:01:36]} Qb6 {[%emt 0:08:22]} 16. Bxf5 {[%emt 0:04:41]} exf5 {[%emt 0:19:07]} 17. Ne3 {[%emt 0:17:07][%cal Bc2e3,Be3g2,Bg2f4,Bf4e6][%mdl 32] A dynamic duo of knights.} (17. Re1 $5 Bf6 18. b3 $14) 17... Rd8 {[%emt 0:00:33]} 18. Nxc6 {[%emt 0:02:20]} Bxc6 {[%emt 0:01:13]} 19. Re1 {[%emt 0:04:37][%cal Oe3f5]} Bd6 {[%emt 0:12:21]} (19... Qxb2 {seems wilder.} 20. Nxf5 Rxf5 21. Rxe7 Rdf8) 20. Ng2 {[%emt 0:04:10]} Qxb2 {[%emt 0:00:52]} 21. Bxd6 {[%emt 0:08:57]} Rxd6 {[%emt 0:00:05]} 22. Nf4 {[%emt 0:05:42]} (22. Re2 {simplifies} Qb5 23. Nf4 g5 24. Nd3) 22... Rd7 {[%emt 0:07:48]} 23. Qh5 {[%emt 0:11:17]} Qxd4 {[%emt 0:05:06]} 24. Re8 {[%emt 0:06:25]} ({White must play} 24. Ne6 $11 Qg4 25. Qxg4 fxg4 26. Nxf8 Kxf8 27. Red1) 24... Rd8 $2 {[%emt 0:02:42]} (24... Rdf7 $1 $17 {keeps the pressure on.} 25. Ree1 Qf6) 25. Rxd8 $16 {[%emt 0:03:03] White stays focused until the end.} Rxd8 {[%emt 0:00:06]} 26. Ne6 $1 $40 {[%emt 0:00:13][%mdl 128] Black is in trouble.} Qf6 {[%emt 0:05:57]} 27. Nxd8 {[%emt 0:00:58]} Qxd8 {[%emt 0:00:39]} 28. Qxf5 {[%emt 0:00:23][%mdl 4096] Endgame. KQR-KQB} Qe8 {[%emt 0:01:45] Inhibits Qe6+.} 29. Qf4 {[%emt 0:02:01] White is much more active.} h6 {[%emt 0:01:21]} 30. Qd4 {[%emt 0:04:41]} a6 {[%emt 0:01:17]} 31. h3 {[%emt 0:02:43]} Qe2 {[%emt 0:00:20] [#]} 32. a3 {[%emt 0:00:18]} Qe6 {[%emt 0:00:50]} 33. g4 {[%emt 0:02:29]} Qe7 {[%emt 0:00:17]} 34. Rc3 {[%emt 0:01:16]} Qe1+ {[%emt 0:00:27] [#]} 35. Kh2 $1 {[%emt 0:00:05]} Qe2 {[%emt 0:01:06]} 36. Kg2 {[%emt 0:04:55]} Qb2 {[%emt 0:00:58][%cal Ob2c3] White must now prevent ...Qxc3!} 37. Rd3 {[%emt 0:01:13]} Qb1 {[%emt 0:00:18]} (37... Qc1 $142 38. Re3 Qc4 39. Qxc4 dxc4+ 40. Kf1 Kf7) 38. Re3 $18 {[%emt 0:00:44]} Qg6 {[%emt 0:00:37]} 39. Re7 {[%emt 0:03:25]} Qg5 {[%emt 0:00:37]} 40. Re6 {[%emt 0:01:21]} Kf8 $2 {[%emt 0:00:31]} (40... Qd8 {was necessary.} 41. Qe5 Qf8) 41. f4 {[%emt 0:31:39][%cal Bf2f4,Bf4f5][%mdl 32]} Qd8 {[%emt 0:30:13]} 42. f5 {[%emt 0:01:51] Weighted Error Value: White=0.13 (very precise) /Black=0.29 (precise) .  Mistake:       	White=1     	Black=3      Inaccurate:     	White=2     	Black=1      OK:         	White=15    	Black=6      Best:        	White=2     	---        Strong:       	White=2     	---} 1-0